bitfinex/quotes_BTCUSD_20220120
["timestamp","ask_amount","ask_price","bid_price","bid_amount"]
[1642692340729,0.20303559,43221.0,43217.0,0.04755851]
[1642692341132,0.20303559,43221.0,43217.0,0.00125851]
[1642692341376,0.20303559,43221.0,43217.0,0.00708952]
[1642692341576,0.20303559,43221.0,43217.0,0.07325851]
[1642692341776,0.20303559,43221.0,43217.0,0.07206876]
[1642692342076,0.08048964,43220.0,43217.0,0.12325851]
[1642692342479,0.19626564,43220.0,43217.0,0.12325851]
[1642692342776,0.13837664,43220.0,43217.0,0.12325851]
[1642692342979,0.08048964,43219.0,43217.0,0.05006876]
[1642692343377,0.08048964,43219.0,43217.0,6.876e-05]
[1642692343578,0.08048964,43219.0,43217.0,0.04606876]
[1642692343779,0.08048964,43219.0,43217.0,0.0850211]
[1642692343780,0.001,43219.0,43217.0,0.0850211]
[1642692343977,0.0805124,43218.0,43217.0,0.04606876]
[1642692344178,0.0805124,43218.0,43217.0,0.0861112]
[1642692344378,0.058884,43219.0,43217.0,0.1361112]
[1642692344779,0.0805124,43218.0,43217.0,0.14004495]
[1642692345019,0.0805124,43218.0,43217.0,0.09404495]
[1642692345220,0.0805124,43218.0,43217.0,0.05006876]
[1642692345623,0.0805124,43218.0,43217.0,0.38406876]
[1642692346019,0.0805124,43218.0,43217.0,0.08406876]
[1642692346219,0.059884,43219.0,43217.0,0.08406876]
[1642692346423,0.059884,43219.0,43217.0,0.03406876]
[1642692346820,0.08045177,43218.0,43217.0,0.03406876]
[1642692347018,0.08045177,43218.0,43217.0,6.876e-05]
[1642692347619,0.08045177,43218.0,43217.0,0.04206876]
[1642692347818,0.08145177,43218.0,43217.0,0.04206876]
[1642692348220,0.08145177,43218.0,43217.0,0.0483284]
[1642692348421,0.001,43218.0,43217.0,0.0483284]
[1642692348624,0.001,43218.0,43217.0,1.5959647]
[1642692348888,0.001,43218.0,43217.0,3.21367756]
[1642692349086,0.05,43223.0,43217.0,3.32167756]
[1642692349281,0.05,43223.0,43219.0,1.24]
[1642692349479,0.05,43223.0,43222.0,0.376448]
[1642692349679,0.05,43223.0,43222.0,0.522748]
[1642692349879,0.00044623,43225.0,43222.0,0.572748]
[1642692350081,0.00044623,43225.0,43222.0,0.5318306]
[1642692350281,0.08045102,43232.0,43222.0,0.5318306]
[1642692350479,0.00044631,43225.0,43222.0,0.1553826]
[1642692350685,0.00044631,43225.0,43221.0,1.29785918]
[1642692350686,0.001,43222.0,43221.0,1.40855509]
[1642692350878,0.001,43222.0,43221.0,1.83500309]
[1642692351781,0.001,43222.0,43221.0,1.92457309]
[1642692352182,0.001,43222.0,43221.0,1.91300309]
[1642692352824,0.001,43222.0,43221.0,1.95930309]
[1642692353421,0.001,43222.0,43221.0,1.97087309]
[1642692353621,0.001,43222.0,43221.0,2.03987309]
[1642692355021,0.001,43222.0,43221.0,1.99287309]
[1642692355220,0.001,43222.0,43221.0,2.19287309]
[1642692355621,0.001,43222.0,43221.0,2.22387309]
[1642692356279,0.02415,43222.0,43221.0,2.22387309]
[1642692356677,0.02415,43222.0,43221.0,2.82387309]
[1642692356882,0.02415,43222.0,43221.0,2.19287309]
[1642692357680,0.02415,43222.0,43221.0,2.03987309]
[1642692358979,0.02415,43222.0,43221.0,1.99287309]
[1642692359580,0.02415,43222.0,43221.0,2.29657309]
[1642692359778,0.165721,43226.0,43223.0,0.376448]
[1642692360032,0.05,43229.0,43228.0,1.37319452]
[1642692360333,0.001,43231.0,43230.0,1.48051753]
[1642692360533,0.058838,43238.0,43237.0,0.2]
[1642692360534,0.02608853,43238.0,43237.0,0.2]
[1642692360731,0.03938184,43238.0,43237.0,5.62093355]
[1642692360931,0.02948184,43238.0,43237.0,5.62093355]
[1642692361231,0.3020316,43248.0,43242.0,0.00124819]
[1642692361433,0.058832,43244.0,43243.0,1.59594252]
[1642692361632,0.001,43244.0,43243.0,1.59594252]
[1642692362036,0.051,43247.0,43243.0,1.59594252]
[1642692362232,0.051,43247.0,43245.0,1.54964252]
[1642692362433,0.108833,43247.0,43245.0,1.60751252]
[1642692363032,0.051,43247.0,43245.0,0.434318]
[1642692363433,0.051,43247.0,43245.0,0.422748]
[1642692363631,0.051,43247.0,43245.0,0.436748]
[1642692363882,0.051,43247.0,43245.0,1.676748]
[1642692364079,0.051,43247.0,43245.0,0.436748]
[1642692364279,0.051,43247.0,43245.0,1.676748]
[1642692364479,0.051,43247.0,43245.0,0.436748]
[1642692364692,0.48138868,43246.0,43245.0,0.436748]
[1642692364881,0.37242812,43246.0,43239.0,0.0463]
[1642692365180,0.057852,43244.0,43236.0,0.23536057]
[1642692365380,0.201442,43244.0,43237.0,0.0463]
[1642692365582,0.08076686,43243.0,43237.0,0.0463]
[1642692365779,0.05,43241.0,43237.0,0.0463]
[1642692365982,0.22355,43241.0,43237.0,0.0463]
[1642692366179,0.00032661,43240.0,43237.0,0.0463]
[1642692366379,0.05817361,43240.0,43237.0,0.0463]
[1642692366579,0.00030942,43239.0,43237.0,0.0463]
[1642692366980,0.00029223,43238.0,43236.0,0.23536057]
[1642692367183,0.00029223,43238.0,43237.0,0.0463]
[1642692367522,0.05,43238.0,43237.0,0.0463]
[1642692367720,0.05,43238.0,43237.0,0.0763]
[1642692369021,0.05,43238.0,43237.0,0.0463]
[1642692369726,0.053,43238.0,43237.0,0.44352]
[1642692369924,0.003,43238.0,43237.0,1.68352]
[1642692370123,0.003,43238.0,43237.0,1.73352]
[1642692370324,0.003,43238.0,43237.0,1.69375124]
[1642692370523,0.003,43238.0,43237.0,1.68352]
[1642692370724,0.003,43238.0,43237.0,0.44352]
[1642692371124,0.223566,43239.0,43237.0,1.66252]
[1642692371377,0.05,43238.0,43237.0,1.66252]
[1642692371581,0.173566,43239.0,43237.0,1.66252]
[1642692371779,0.180566,43239.0,43237.0,1.79409]
[1642692372182,0.180566,43239.0,43238.0,3.09545621]
[1642692372485,0.00730942,43239.0,43238.0,3.14175621]
[1642692372682,0.00730942,43239.0,43238.0,3.24175621]
[1642692373081,0.00030942,43239.0,43238.0,3.24175621]
[1642692373681,0.00030942,43239.0,43238.0,2.99409]
[1642692374584,0.05737087,43240.0,43239.0,1.52622]
[1642692374782,0.05737087,43240.0,43239.0,1.57252]
[1642692375026,0.05737087,43240.0,43239.0,2.86252]
[1642692375229,0.05737087,43240.0,43239.0,2.87409]
[1642692375425,0.05737087,43240.0,43239.0,1.58409]
[1642692375822,0.05737087,43240.0,43239.0,1.61609]
[1642692376024,0.05737087,43240.0,43239.0,0.46609]
[1642692376424,0.20096087,43240.0,43239.0,0.45452]
[1642692376625,0.20096087,43240.0,43239.0,0.376214]
[1642692377024,0.05737087,43240.0,43239.0,0.376214]
[1642692377224,0.05737087,43240.0,43236.0,1.47536057]
[1642692377428,0.05737087,43240.0,43237.0,0.376215]
[1642692377827,0.05737087,43240.0,43238.0,1.24]
[1642692378026,0.05737087,43240.0,43239.0,0.269697]
[1642692378229,0.05737087,43240.0,43236.0,0.063]
[1642692378230,0.71758824,43239.0,43236.0,0.063]
[1642692378429,0.71758824,43239.0,43236.0,0.0618]
[1642692378875,0.057858,43237.0,43229.0,0.29384856]
[1642692379081,0.05,43233.0,43230.0,0.376216]
[1642692379278,0.05,43233.0,43227.0,0.23515969]
[1642692379279,0.14359,43231.0,43227.0,0.23515969]
[1642692379484,0.05787,43229.0,43221.0,0.01157]
[1642692380076,0.00010314,43228.0,43221.0,0.01157]
[1642692380281,0.54974425,43225.0,43218.0,0.29277944]
[1642692380479,0.057872,43223.0,43218.0,0.01156]
[1642692380679,0.05,43222.0,43218.0,0.01156]
[1642692381081,0.231496,43233.0,43219.0,1.2]
[1642692381082,0.05,43224.0,43219.0,1.2]
[1642692381379,0.05,43224.0,43219.0,1.25013752]
[1642692381679,0.115737,43222.0,43219.0,1.35013752]
[1642692381878,0.115737,43222.0,43219.0,2.59013752]
[1642692382177,0.115737,43222.0,43219.0,1.35013752]
[1642692382936,0.115737,43222.0,43219.0,2.59013752]
[1642692383133,0.115737,43222.0,43219.0,1.35013752]
[1642692384436,0.115737,43222.0,43219.0,0.15013752]
[1642692384633,0.115737,43222.0,43219.0,0.05013752]
[1642692384835,0.115737,43222.0,43219.0,0.00013752]
[1642692385438,0.259327,43222.0,43218.0,0.0011096]
[1642692385835,0.260327,43222.0,43218.0,0.0011096]
[1642692386278,0.260327,43222.0,43217.0,0.0001719]
[1642692386477,0.260327,43222.0,43218.0,0.00110961]
[1642692386880,0.43396517,43222.0,43218.0,0.00110961]
[1642692387079,0.37508317,43222.0,43218.0,0.00110961]
[1642692387278,0.37508317,43222.0,43216.0,0.00018909]
[1642692387279,0.37508317,43222.0,43212.0,0.43278]
[1642692387679,0.2292759,43220.0,43218.0,0.00110961]
[1642692387881,0.19723178,43217.0,43212.0,0.01278]
[1642692388185,0.115761,43216.0,43212.0,0.01278]
[1642692388379,0.115761,43216.0,43212.0,0.00122]
[1642692389479,0.18580759,43214.0,43212.0,0.00122]
[1642692390130,0.057888,43213.0,43208.0,0.01156]
[1642692390530,0.057888,43213.0,43209.0,0.00012034]
[1642692390736,0.057888,43213.0,43210.0,0.01156]
[1642692391129,0.057888,43213.0,43211.0,8.596e-05]
[1642692391533,0.107867,43216.0,43211.0,0.47778178]
[1642692391733,0.107867,43216.0,43212.0,0.0463]
[1642692391933,0.107867,43216.0,43213.0,1.25156]
[1642692392130,0.05,43215.0,43214.0,0.23515969]
[1642692392533,0.05,43215.0,43214.0,1.47515969]
[1642692392932,0.05,43215.0,43214.0,1.57515969]
[1642692393533,0.05,43215.0,43214.0,1.58671969]
[1642692393781,0.054,43215.0,43214.0,1.58671969]
[1642692394383,0.054,43215.0,43214.0,0.24671969]
[1642692394584,0.054,43215.0,43213.0,0.04663493]
[1642692395787,0.052,43215.0,43213.0,0.04663493]
[1642692396788,0.05909385,43214.0,43212.0,0.00125862]
[1642692396986,0.05909385,43214.0,43212.0,6.877e-05]
[1642692397187,0.05909385,43214.0,43212.0,0.00118985]
[1642692397386,0.057888,43213.0,43212.0,0.00118985]
[1642692397828,0.15216764,43210.0,43208.0,0.01156]
[1642692398030,0.41458807,43210.0,43208.0,0.01156]
[1642692398433,0.35669857,43210.0,43208.0,0.01156]
[1642692398629,0.20453093,43210.0,43208.0,0.01156]
[1642692398829,0.173669,43212.0,43209.0,0.01156]
[1642692399333,0.057888,43213.0,43210.0,0.0463]
[1642692399531,0.107867,43216.0,43212.0,0.01156]
[1642692399732,0.107867,43216.0,43213.0,0.2463]
[1642692399930,0.107867,43216.0,43215.0,0.01156]
[1642692400129,0.107867,43216.0,43215.0,0.36065778]
[1642692400332,6.877e-05,43216.0,43215.0,2.77791778]
[1642692400531,6.877e-05,43216.0,43215.0,3.11307747]
[1642692400732,6.877e-05,43216.0,43215.0,2.81027969]
[1642692400929,6.877e-05,43216.0,43215.0,2.81152885]
[1642692401391,6.877e-05,43216.0,43215.0,1.96027969]
[1642692401794,6.877e-05,43216.0,43215.0,2.49227969]
[1642692401991,6.877e-05,43216.0,43215.0,2.84227969]
[1642692402191,6.877e-05,43216.0,43215.0,2.49227969]
[1642692402792,6.877e-05,43216.0,43215.0,2.34227969]
[1642692402995,6.877e-05,43216.0,43215.0,2.91027969]
[1642692403394,6.877e-05,43216.0,43215.0,2.41027969]
[1642692403795,6.877e-05,43216.0,43215.0,2.44327969]
[1642692403992,6.877e-05,43216.0,43215.0,2.94327969]
[1642692404192,6.877e-05,43216.0,43215.0,3.04327969]
[1642692404392,6.877e-05,43216.0,43215.0,2.59327969]
[1642692405525,6.877e-05,43216.0,43215.0,2.39327969]
[1642692405725,6.877e-05,43216.0,43215.0,1.76027969]
[1642692405929,6.877e-05,43216.0,43215.0,0.55127969]
[1642692406129,6.877e-05,43216.0,43215.0,0.83886]
[1642692407028,6.877e-05,43216.0,43215.0,1.15786]
[1642692407225,6.877e-05,43216.0,43215.0,1.1463]
[1642692407426,6.877e-05,43216.0,43215.0,2.39786]
[1642692407828,0.00506877,43216.0,43215.0,2.64701969]
[1642692408229,0.00506877,43216.0,43215.0,2.84701969]
[1642692408430,0.00506877,43216.0,43215.0,2.89701969]
[1642692408630,0.20506877,43216.0,43215.0,2.99701969]
[1642692408890,0.20506877,43216.0,43215.0,2.79701969]
[1642692409094,0.20006877,43216.0,43215.0,2.78301969]
[1642692409891,0.00839668,43220.0,43216.0,1.0]
[1642692410091,0.00839668,43220.0,43217.0,0.0463]
[1642692410493,0.057865,43218.0,43217.0,0.0463]
[1642692411891,0.057865,43218.0,43217.0,0.0703]
[1642692413234,0.25344024,43218.0,43217.0,0.0463]
[1642692413935,0.057865,43218.0,43217.0,0.08486]
[1642692414739,0.057865,43218.0,43217.0,0.0733]
[1642692414937,0.29620117,43218.0,43217.0,0.0733]
[1642692415136,0.057865,43218.0,43217.0,0.0733]
[1642692415737,0.057865,43218.0,43217.0,0.0463]
[1642692415936,0.058865,43218.0,43217.0,0.0963]
[1642692417182,0.057865,43218.0,43217.0,0.0463]
[1642692417582,0.20270049,43218.0,43212.0,0.00118987]
[1642692417781,0.1685289,43215.0,43212.0,0.00118987]
[1642692417985,0.2185289,43215.0,43212.0,0.00118987]
[1642692418282,0.05,43215.0,43212.0,0.00118987]
[1642692418482,0.21070049,43218.0,43212.0,0.00118987]
[1642692418483,0.057884,43216.0,43212.0,0.00118987]
[1642692418682,0.057886,43214.0,43209.0,0.29671969]
[1642692418882,0.057886,43214.0,43211.0,0.00118986]
[1642692419085,0.057886,43214.0,43212.0,0.0463]
[1642692419685,0.057886,43214.0,43213.0,0.01156]
[1642692419882,0.057886,43214.0,43213.0,0.0463]
[1642692419883,0.058886,43214.0,43213.0,0.0463]
[1642692420133,0.108886,43214.0,43211.0,0.00118987]
[1642692420333,0.24635998,43212.0,43211.0,0.00118987]
[1642692420534,0.29635998,43212.0,43211.0,0.00118987]
[1642692420733,0.29635998,43212.0,43211.0,0.00127583]
[1642692421037,0.29635998,43212.0,43211.0,0.60008596]
[1642692421836,0.05,43212.0,43211.0,0.60008596]
[1642692422035,0.007,43212.0,43211.0,1.91464596]
[1642692422237,0.007,43212.0,43211.0,2.01364596]
[1642692422434,0.007,43212.0,43211.0,2.05994596]
[1642692423335,0.27338032,43220.0,43211.0,2.04694596]
[1642692423533,0.115751,43215.0,43211.0,2.14694596]
[1642692423778,0.115751,43215.0,43213.0,1.24]
[1642692423978,0.107871,43214.0,43213.0,1.24]
[1642692424179,0.107871,43214.0,43213.0,1.3363]
[1642692424380,0.107871,43214.0,43213.0,1.34286]
[1642692424580,0.057871,43214.0,43213.0,1.64286]
[1642692424786,0.12458764,43220.0,43213.0,1.87801969]
[1642692424980,0.12458764,43220.0,43218.0,0.00122489]
[1642692425181,0.12458764,43220.0,43219.0,1.2463]
[1642692425380,0.00885664,43220.0,43219.0,1.3463]
[1642692425581,0.0089254,43220.0,43219.0,1.3463]
[1642692425780,0.00846544,43220.0,43219.0,1.35786]
[1642692425984,0.00846544,43220.0,43219.0,2.62086]
[1642692426381,0.00846544,43220.0,43219.0,2.77086]
[1642692426982,0.00846544,43220.0,43219.0,3.27086]
[1642692427183,0.00846544,43220.0,43219.0,3.44786]
[1642692427387,0.00846544,43220.0,43219.0,4.28682969]
[1642692428028,6.876e-05,43220.0,43219.0,4.72182969]
[1642692428328,6.876e-05,43220.0,43219.0,4.32304325]
[1642692428528,6.876e-05,43220.0,43219.0,4.29793325]
[1642692429128,6.876e-05,43220.0,43219.0,4.26293325]
[1642692429933,6.876e-05,43220.0,43219.0,4.31093325]
[1642692430330,8.76e-06,43220.0,43219.0,7.14213948]
[1642692430531,0.05,43223.0,43221.0,0.00129042]
[1642692430731,0.05,43223.0,43222.0,0.7463]
[1642692430931,0.05,43223.0,43222.0,2.30402056]
[1642692431132,0.05,43223.0,43222.0,2.40402056]
[1642692431584,0.02450897,43223.0,43222.0,2.41558056]
[1642692431984,0.02450897,43223.0,43222.0,2.45658056]
[1642692432384,0.057842,43236.0,43222.0,2.45658056]
[1642692432689,0.057844,43232.0,43228.0,2.64]
[1642692432887,1.05,43229.0,43228.0,1.99301969]
[1642692433085,1.05015471,43229.0,43228.0,1.99301969]
[1642692433285,1.05015471,43229.0,43228.0,2.04301969]
[1642692433488,1.05015471,43229.0,43228.0,2.14301969]
[1642692433886,1.05015471,43229.0,43228.0,2.12301969]
[1642692434087,1.05015471,43229.0,43228.0,2.35301969]
[1642692434289,1.05015471,43229.0,43228.0,3.59301969]
[1642692434489,1.05015471,43229.0,43228.0,3.49301969]
[1642692435133,1.10800371,43229.0,43228.0,3.49301969]
[1642692435337,1.10800371,43229.0,43228.0,3.46301969]
[1642692435533,1.10800371,43229.0,43228.0,2.32301969]
[1642692435935,1.10800371,43229.0,43228.0,2.35201969]
[1642692436135,1.10800371,43229.0,43228.0,2.11686]
[1642692436334,1.05800371,43229.0,43228.0,2.11686]
[1642692436538,1.05800371,43229.0,43228.0,2.26686]
[1642692436735,1.05800371,43229.0,43228.0,3.50686]
[1642692436936,0.11615932,43231.0,43229.0,0.29998684]
[1642692437142,0.00045732,43231.0,43230.0,1.26578098]
[1642692437336,0.00045732,43231.0,43230.0,1.61138592]
[1642692437540,0.00045732,43231.0,43230.0,2.96294592]
[1642692437738,0.05,43236.0,43230.0,3.00955714]
[1642692437943,0.05,43236.0,43235.0,1.44]
[1642692438140,0.05,43236.0,43235.0,2.1363]
[1642692438340,0.0159,43238.0,43235.0,2.14786]
[1642692438540,0.0159,43238.0,43237.0,0.20123536]
[1642692438799,0.0159,43238.0,43237.0,1.84935144]
[1642692439000,0.0159,43238.0,43237.0,1.89935144]
[1642692439199,0.058827,43246.0,43237.0,2.49935144]
[1642692439399,0.05,43243.0,43239.0,1.44]
[1642692439601,0.05,43243.0,43241.0,1.44]
[1642692439798,0.05,43243.0,43242.0,0.25786]
[1642692439998,0.05,43243.0,43242.0,1.60096]
[1642692440198,0.05024066,43243.0,43242.0,2.10096]
[1642692440506,0.05024066,43243.0,43242.0,2.20096]
[1642692440699,0.05024066,43243.0,43242.0,2.55096]
[1642692440898,0.05024066,43243.0,43242.0,2.20096]
[1642692441499,0.05024066,43243.0,43242.0,2.30096]
[1642692441699,0.05024066,43243.0,43242.0,3.47966]
[1642692441900,0.03243486,43243.0,43242.0,3.77966]
[1642692442102,0.00617281,43243.0,43242.0,3.87266]
[1642692442402,0.002,43248.0,43246.0,0.2]
[1642692442633,0.002,43248.0,43247.0,4.71812225]
[1642692442830,0.002,43248.0,43247.0,2.90719179]
[1642692443037,0.001,43251.0,43250.0,1.24]
[1642692443232,0.003,43258.0,43250.0,1.63467711]
[1642692443433,0.0261,43255.0,43253.0,0.2]
[1642692443633,0.00306,43260.0,43257.0,0.2]
[1642692443833,0.00306,43260.0,43259.0,3.23026]
[1642692444033,0.00306,43260.0,43259.0,3.42319558]
[1642692444232,0.002,43264.0,43260.0,2.64]
[1642692444435,0.001,43269.0,43264.0,0.2]
[1642692444638,0.001,43269.0,43266.0,0.2]
[1642692444834,0.001,43269.0,43268.0,0.01156]
[1642692444835,0.051,43269.0,43268.0,0.01156]
[1642692445035,0.051,43269.0,43268.0,0.05786]
[1642692445235,0.10895071,43269.0,43268.0,0.0463]
[1642692446038,0.10895071,43269.0,43268.0,0.035]
[1642692446483,0.10895071,43269.0,43268.0,0.385]
[1642692447083,0.10895071,43269.0,43268.0,0.035]
[1642692447284,0.10895071,43269.0,43267.0,0.05]
[1642692447482,0.15895071,43269.0,43268.0,0.0463]
[1642692447684,0.158796,43269.0,43268.0,0.0463]
[1642692448084,0.158796,43269.0,43268.0,0.1013]
[1642692449289,0.158796,43269.0,43268.0,0.0463]
[1642692450027,0.158796,43269.0,43268.0,0.06786]
[1642692451327,0.158796,43269.0,43268.0,0.0463]
[1642692451930,0.158796,43269.0,43268.0,0.05786]
[1642692452129,0.108796,43269.0,43268.0,1.58626803]
[1642692452328,0.108796,43269.0,43268.0,1.82142772]
[1642692452527,0.108796,43269.0,43268.0,1.92202772]
[1642692452728,0.108796,43269.0,43268.0,1.64761969]
[1642692453129,0.108796,43269.0,43268.0,2.34761969]
[1642692453435,0.108796,43269.0,43268.0,2.33361969]
[1642692453436,0.051,43269.0,43268.0,2.33361969]
[1642692453632,0.051,43269.0,43268.0,2.38025527]
[1642692453886,0.0001,43275.0,43269.0,1.2]
[1642692454087,0.03399427,43272.0,43270.0,3.09787987]
[1642692454287,0.03399427,43272.0,43271.0,0.9718716]
[1642692454485,0.03399427,43272.0,43271.0,2.8368716]
[1642692454486,0.02676784,43272.0,43271.0,2.8368716]
[1642692454687,0.02431537,43272.0,43271.0,7.12616384]
[1642692454885,0.02431537,43272.0,43271.0,6.85429224]
[1642692455087,0.00020628,43272.0,43271.0,6.85429224]
[1642692455289,0.0001,43275.0,43273.0,0.2]
[1642692455496,0.001,43290.0,43277.0,0.2]
[1642692455792,0.001,43290.0,43279.0,3.21991756]
[1642692455992,0.001,43290.0,43279.0,3.26621756]
[1642692456189,0.00023752,43280.0,43279.0,3.36621756]
[1642692456591,0.00023752,43280.0,43279.0,3.37777756]
[1642692456789,0.00023752,43280.0,43279.0,3.87777756]
[1642692457390,0.00023752,43280.0,43279.0,3.67777756]
[1642692457641,0.00023752,43280.0,43279.0,1.47171969]
[1642692458037,0.00023752,43280.0,43279.0,1.49571969]
[1642692458543,0.00023752,43280.0,43279.0,2.69571969]
[1642692458739,0.00023752,43280.0,43279.0,2.93571969]
[1642692458940,0.00023752,43280.0,43279.0,3.08571969]
[1642692459340,0.00023752,43280.0,43279.0,3.49518081]
[1642692460041,0.00023752,43280.0,43279.0,3.51918081]
[1642692460840,0.00023752,43280.0,43279.0,3.31918081]
[1642692461286,0.42,43283.0,43281.0,1.24]
[1642692461487,0.42,43283.0,43280.0,1.2]
[1642692461488,0.24068553,43298.0,43283.0,1.2]
[1642692461690,0.00129317,43297.0,43284.0,1.52145969]
[1642692461986,0.00010315,43286.0,43284.0,1.82203674]
[1642692462187,0.00010315,43286.0,43285.0,1.46378367]
[1642692462488,0.057772,43287.0,43286.0,0.1]
[1642692462687,0.057772,43287.0,43286.0,0.41094794]
[1642692462887,0.057772,43287.0,43286.0,0.1463]
[1642692463088,0.09784282,43298.0,43287.0,1.05]
[1642692463289,0.00036504,43290.0,43288.0,0.0463]
[1642692463488,0.00036504,43290.0,43289.0,1.3]
[1642692463693,0.00036504,43290.0,43289.0,1.3463]
[1642692463889,0.00053695,43290.0,43289.0,0.5463]
[1642692464090,0.00053695,43290.0,43289.0,0.68386]
[1642692464289,0.00017191,43290.0,43289.0,0.58386]
[1642692464490,0.05794991,43290.0,43289.0,0.58386]
[1642692464894,0.05794991,43290.0,43289.0,0.526]
[1642692464895,0.20153991,43290.0,43289.0,0.526]
[1642692465136,0.25153991,43290.0,43289.0,0.526]
[1642692465337,0.95153991,43290.0,43287.0,0.23]
[1642692465536,0.173377,43289.0,43287.0,0.23]
[1642692465736,0.22632672,43289.0,43285.0,0.00118848]
[1642692465938,0.05013753,43288.0,43285.0,0.00118848]
[1642692466137,0.05013753,43288.0,43287.0,0.377]
[1642692466342,0.05,43288.0,43287.0,0.377]
[1642692467142,0.597377,43289.0,43287.0,0.377]
[1642692467143,0.429,43289.0,43287.0,0.377]
[1642692467339,0.42,43289.0,43288.0,0.01156]
[1642692467539,0.42,43289.0,43288.0,0.05786]
[1642692467740,0.42015472,43289.0,43288.0,0.05786]
[1642692467940,0.47015472,43289.0,43288.0,0.05786]
[1642692468143,0.47015472,43289.0,43288.0,0.0713]
[1642692468641,0.47015472,43289.0,43288.0,0.1713]
[1642692469581,0.47015472,43289.0,43288.0,0.0463]
[1642692469983,0.47015472,43289.0,43285.0,0.10118847]
[1642692470185,0.165573,43288.0,43285.0,0.1]
[1642692470383,0.22349753,43288.0,43285.0,0.10118847]
[1642692470584,0.00012034,43287.0,43285.0,0.00118847]
[1642692470788,0.00012034,43287.0,43280.0,0.1]
[1642692470789,0.21253146,43286.0,43280.0,0.1]
[1642692471084,8.596e-05,43285.0,43280.0,0.1]
[1642692471286,0.057792,43284.0,43280.0,0.1]
[1642692471590,0.05786076,43284.0,43279.0,0.1]
[1642692471983,0.05786076,43284.0,43279.0,0.15]
[1642692472385,0.11586076,43284.0,43279.0,0.194]
[1642692472628,0.1464648,43283.0,43279.0,0.094]
[1642692472828,0.1464648,43283.0,43279.0,0.04482856]
[1642692473031,0.2620588,43283.0,43279.0,0.04482856]
[1642692473428,0.115594,43283.0,43279.0,0.00082856]
[1642692473629,0.057796,43282.0,43279.0,0.00082856]
[1642692473928,0.057791,43281.0,43277.0,0.01156]
[1642692474132,0.057791,43281.0,43279.0,0.05082857]
[1642692474731,0.052791,43281.0,43279.0,0.05082857]
[1642692475130,0.052791,43281.0,43280.0,0.05786]
[1642692475330,0.05785076,43284.0,43280.0,0.05786]
[1642692476129,0.05785076,43284.0,43280.0,0.12686]
[1642692476386,0.05785076,43284.0,43283.0,0.7]
[1642692476585,0.05785076,43284.0,43283.0,0.1463]
[1642692477184,0.05785076,43284.0,43283.0,0.4963]
[1642692477385,6.876e-05,43284.0,43283.0,0.4963]
[1642692478185,6.876e-05,43284.0,43283.0,1.1173]
[1642692478385,6.876e-05,43284.0,43283.0,1.2173]
[1642692479186,6.876e-05,43284.0,43283.0,1.22886]
[1642692479388,6.876e-05,43284.0,43283.0,1.20786]
[1642692479585,6.876e-05,43284.0,43283.0,1.10786]
[1642692480036,6.876e-05,43284.0,43283.0,1.37768533]
[1642692480231,6.876e-05,43284.0,43283.0,1.45168533]
[1642692480432,6.876e-05,43284.0,43283.0,1.55168533]
[1642692481530,6.876e-05,43284.0,43283.0,1.47768533]
[1642692481730,6.876e-05,43284.0,43283.0,1.10786]
[1642692481933,6.876e-05,43284.0,43283.0,1.3711504]
[1642692482130,6.876e-05,43284.0,43283.0,1.7051504]
[1642692482331,6.876e-05,43284.0,43283.0,1.4551504]
[1642692482531,6.876e-05,43284.0,43283.0,1.5551504]
[1642692482731,6.876e-05,43284.0,43283.0,1.4551504]
[1642692483134,6.876e-05,43284.0,43283.0,1.19186]
[1642692483332,6.876e-05,43284.0,43283.0,1.19246]
[1642692484085,6.876e-05,43284.0,43283.0,1.1968021]
[1642692485081,6.876e-05,43284.0,43283.0,1.4468021]
[1642692485381,0.0499,43288.0,43284.0,0.6]
[1642692485583,0.0499,43288.0,43285.0,0.31378531]
[1642692485780,0.0499,43288.0,43285.0,0.0463]
[1642692486181,0.0499,43288.0,43285.0,0.1203]
[1642692486781,0.0499,43288.0,43285.0,0.38564551]
[1642692486983,0.42,43289.0,43287.0,0.01156]
[1642692487185,0.42044338,43289.0,43288.0,0.0463]
[1642692487631,0.00177315,43298.0,43288.0,0.0463]
[1642692487632,0.00121629,43299.0,43289.0,0.65]
[1642692487830,0.286,43303.0,43290.0,0.0463]
[1642692488031,0.31826661,43304.0,43290.0,0.32076207]
[1642692488032,0.00015472,43293.0,43290.0,0.32076207]
[1642692488232,0.00015472,43293.0,43290.0,0.05786]
[1642692488530,0.00013753,43292.0,43290.0,0.15786]
[1642692488931,0.00012034,43291.0,43290.0,0.1463]
[1642692489135,0.00012034,43291.0,43290.0,0.04651774]
[1642692490134,0.00012034,43291.0,43290.0,0.10051774]
[1642692490733,0.00012034,43291.0,43290.0,0.11206774]
[1642692491987,0.00012034,43291.0,43290.0,0.05806774]
[1642692492187,0.00012034,43291.0,43290.0,0.11206774]
[1642692492987,0.00012034,43291.0,43290.0,0.16206774]
[1642692493189,0.00012034,43291.0,43290.0,0.11576774]
[1642692493387,0.00012034,43291.0,43290.0,0.06176774]
[1642692493789,0.00012034,43291.0,43290.0,0.01176774]
[1642692494188,0.00012034,43291.0,43290.0,0.05323211]
[1642692494189,0.00412034,43291.0,43290.0,0.05323211]
[1642692494593,0.17624585,43291.0,43290.0,0.05323211]
[1642692495036,0.62624585,43291.0,43290.0,0.28323211]
[1642692495434,0.17224585,43291.0,43290.0,0.28023211]
[1642692496035,0.00012034,43291.0,43290.0,0.28023211]
[1642692496333,0.00612034,43291.0,43290.0,0.31223211]
[1642692496935,0.30612034,43291.0,43290.0,0.31223211]
[1642692497538,0.30012034,43291.0,43290.0,0.28012327]
[1642692497736,0.29512034,43291.0,43290.0,0.28012327]
[1642692497935,0.29512034,43291.0,43290.0,0.23012327]
[1642692498235,0.30012034,43291.0,43290.0,0.24472327]
[1642692498638,0.005,43291.0,43290.0,0.24472327]
[1642692499184,0.005,43291.0,43290.0,0.03163634]
[1642692499384,0.115582,43292.0,43290.0,0.01763634]
[1642692499585,0.115582,43292.0,43290.0,0.01753634]
[1642692499985,0.33091443,43291.0,43290.0,0.01753634]
[1642692500188,0.33091443,43291.0,43290.0,0.02953634]
[1642692500386,0.120582,43292.0,43290.0,0.02953634]